fUSD/lending_fUSD_20241016
["ID","MTS","AMOUNT","RATE_DAILY","PERIOD"]
[340348299,1729079492479,-500.0,0.00024657,7]
[340348300,1729079492488,-500.0,0.00024657,7]
[340348301,1729079492498,-614.13,0.00024657,7]
[340348302,1729079492510,-500.0,0.00024657,7]
[340348303,1729079492521,-500.0,0.00024657,7]
[340348304,1729079492531,-500.0,0.00024657,7]
[340348305,1729079492540,-500.0,0.00024657,7]
[340348306,1729079492550,-500.0,0.00024657,7]
[340348307,1729079492560,-500.0,0.00024657,7]
[340348308,1729079492569,-500.0,0.00024657,7]
[340348309,1729079492579,-245.501994,0.00024657,7]
[340348310,1729079492590,-500.0,0.00024657,7]
[340348311,1729079492600,-500.0,0.00024657,7]
[340348312,1729079492611,-500.0,0.00024657,7]
[340348313,1729079492624,-245.501994,0.00024657,7]
[340348314,1729079492635,-500.0,0.00024657,7]
[340348315,1729079492645,-500.0,0.00024657,7]
[340348316,1729079492656,-455.72378292,0.00024657,7]
[340348317,1729079492667,-245.501994,0.00024657,7]
[340348318,1729079492677,-500.0,0.00024657,7]
[340348319,1729079492688,-500.0,0.00024657,7]
[340348320,1729079492698,-245.501994,0.00024657,7]
[340348321,1729079492709,-500.0,0.00024657,7]
[340348322,1729079492719,-509.04842271,0.00024657,7]
[340348323,1729079492730,-500.0,0.00024657,7]
[340348324,1729079492742,-245.501994,0.00024657,7]
[340348325,1729079492752,-189.15412196,0.00024657,7]
[340348326,1729079492762,-500.0,0.00024657,7]
[340348327,1729079492772,-500.0,0.00024657,7]
[340348328,1729079492784,-500.0,0.00024657,7]
[340348329,1729079492793,-500.0,0.00024657,7]
[340348330,1729079492803,-500.0,0.00024657,7]
[340348331,1729079492812,-238.1768138,0.00024657,7]
[340348332,1729079493793,-261.8231862,0.00024657,7]
[340348333,1729079493803,-500.0,0.00024657,7]
[340348334,1729079493812,-500.0,0.00024657,7]
[340348335,1729079493822,-500.0,0.00024657,7]
[340348336,1729079493832,-500.0,0.00024657,7]
[340348337,1729079493843,-500.0,0.00024657,7]
[340348338,1729079493852,-500.0,0.00024657,7]
[340348339,1729079493861,-500.0,0.00024657,7]
[340348340,1729079493872,-500.0,0.00024657,7]
[340348341,1729079493882,-500.0,0.00024657,7]
[340348342,1729079493892,-500.0,0.00024657,7]
[340348343,1729079493901,-500.0,0.00024657,7]
[340348344,1729079493911,-500.0,0.00024657,7]
[340348345,1729079493921,-500.0,0.00024657,7]
[340348346,1729079493929,-500.0,0.00024657,7]
[340348347,1729079493939,-500.0,0.00024657,7]
[340348348,1729079493948,-500.0,0.00024657,7]
[340348349,1729079493957,-500.0,0.00024657,7]
[340348350,1729079493968,-500.0,0.00024657,7]
[340348351,1729079493977,-500.0,0.00024657,7]
[340348352,1729079493987,-500.0,0.00024657,7]
[340348353,1729079493997,-500.0,0.00024657,7]
[340348354,1729079494007,-245.501994,0.00024657,7]
[340348355,1729079494017,-500.0,0.00024657,7]
[340348356,1729079494027,-550.4771709,0.00024657,7]
[340348357,1729079494037,-500.0,0.00024657,7]
[340348358,1729079494047,-500.0,0.00024657,7]
[340348359,1729079494058,-500.0,0.00024657,7]
[340348360,1729079494067,-500.0,0.00024657,7]
[340348361,1729079494077,-245.501994,0.00024657,7]
[340348362,1729079494087,-501.86147158,0.00024657,7]
[340348363,1729079494097,-500.0,0.00024657,7]
[340348364,1729079494107,-500.0,0.00024657,7]
[340348365,1729079494118,-500.0,0.00024657,7]
[340348366,1729079494128,-281.65205023,0.00024657,7]
[340348367,1729079494137,-245.501994,0.00024657,7]
[340348368,1729079494147,-500.0,0.00024657,7]
[340348369,1729079494156,-500.0,0.00024657,7]
[340348370,1729079494166,-500.0,0.00024657,7]
[340348371,1729079494176,-245.501994,0.00024657,7]
[340348372,1729079494185,-419.99,0.00024657,7]
[340348373,1729079494194,-500.0,0.00024657,7]
[340348374,1729079494203,-245.501994,0.00024657,7]
[340348375,1729079494212,-500.0,0.00024657,7]
[340348376,1729079494222,-500.0,0.00024657,7]
[340348377,1729079494231,-500.0,0.00024657,7]
[340348378,1729079494240,-500.0,0.00024657,7]
[340348379,1729079494250,-500.0,0.00024657,7]
[340348380,1729079494259,-500.0,0.00024657,7]
[340348381,1729079494269,-500.0,0.00024657,7]
[340348382,1729079494278,-500.0,0.00024657,7]
[340348383,1729079494288,-500.0,0.00024657,7]
[340348384,1729079494298,-500.0,0.00024657,7]
[340348385,1729079494307,-500.0,0.00024657,7]
[340348386,1729079494316,-500.0,0.00024657,7]
[340348387,1729079494326,-500.0,0.00024657,7]
[340348388,1729079494335,-500.0,0.00024657,7]
[340348389,1729079494345,-284.20081087,0.00024657,7]
[340348390,1729079494354,-500.0,0.00024657,7]
[340348391,1729079494364,-500.0,0.00024657,7]
[340348392,1729079494373,-500.0,0.00024657,7]
[340348393,1729079494383,-500.0,0.00024657,7]
[340348394,1729079494392,-500.0,0.00024657,7]
[340348395,1729079494401,-500.0,0.00024657,7]
[340348396,1729079494410,-212.14883113,0.00024657,7]
[340348397,1729079494421,-500.0,0.00024657,7]
[340348398,1729079494435,-500.0,0.00024657,7]
[340348399,1729079494444,-578.57007775,0.00024657,7]
[340348400,1729079494454,-500.0,0.00024657,7]
[340348401,1729079494463,-500.0,0.00024657,7]
[340348402,1729079494474,-500.0,0.00024657,7]
[340348403,1729079494483,-375.0,0.00024657,2]
[340348404,1729079494492,-500.0,0.00024657,7]
[340348405,1729079494504,-500.0,0.00024657,7]
[340348406,1729079494514,-500.0,0.00024657,7]
[340348407,1729079494522,-500.0,0.00024657,7]
[340348408,1729079494532,-500.0,0.00024657,7]
[340348409,1729079494541,-500.0,0.00024657,7]
[340348410,1729079494550,-500.0,0.00024657,7]
[340348411,1729079494559,-500.0,0.00024657,7]
[340348412,1729079494568,-500.0,0.00024657,7]
[340348413,1729079494578,-500.0,0.00024657,7]
[340348414,1729079494587,-500.0,0.00024657,7]
[340348415,1729079494597,-500.0,0.00024657,7]
[340348416,1729079494606,-500.0,0.00024657,7]
[340348417,1729079494617,-500.0,0.00024657,7]
[340348418,1729079494626,-500.0,0.00024657,7]
[340348419,1729079494635,-500.0,0.00024657,7]
[340348420,1729079494645,-164.17088815,0.00024657,7]
[340348421,1729079494654,-500.0,0.00024657,7]
[340348422,1729079494664,-500.0,0.00024657,7]
[340348423,1729079494673,-500.0,0.00024657,7]
[340348424,1729079494683,-500.0,0.00024657,7]
[340348425,1729079494692,-500.0,0.00024657,7]
[340348426,1729079494701,-500.0,0.00024657,7]
[340348427,1729079494711,-500.0,0.00024657,7]
[340348428,1729079494721,-500.0,0.00024657,7]
[340348429,1729079494730,-500.0,0.00024657,7]
[340348430,1729079494739,-741.77017,0.00024657,7]
[340348431,1729079494749,-500.0,0.00024657,7]
[340348432,1729079494759,-500.0,0.00024657,7]
[340348433,1729079494769,-150.91040683,0.00024657,7]
[340348434,1729079494779,-741.77017,0.00024657,7]
[340348435,1729079494788,-500.0,0.00024657,7]
[340348436,1729079494797,-741.77017,0.00024657,7]
[340348437,1729079494807,-512.63810647,0.00024657,7]
[340348438,1729079494818,-741.77017,0.00024657,7]
[340348439,1729079494828,-741.77017,0.00024657,7]
[340348440,1729079494837,-741.77017,0.00024657,7]
[340348441,1729079494847,-500.0,0.00024657,7]
[340348442,1729079494856,-500.0,0.00024657,7]
[340348443,1729079494867,-500.0,0.00024657,7]
[340348444,1729079494877,-500.0,0.00024657,7]
[340348445,1729079494886,-500.0,0.00024657,7]
[340348446,1729079494896,-741.77017,0.00024657,7]
[340348447,1729079494924,-500.0,0.00024657,7]
[340348448,1729079494933,-500.0,0.00024657,7]
[340348449,1729079494943,-500.0,0.00024657,7]
[340348450,1729079494953,-505.37441374,0.00024657,7]
[340348451,1729079494963,-741.77017,0.00024657,7]
[340348452,1729079494972,-500.0,0.00024657,7]
[340348453,1729079494981,-500.0,0.00024657,7]
[340348454,1729079494991,-741.77017,0.00024657,7]
[340348455,1729079495001,-500.0,0.00024657,7]
[340348456,1729079495011,-500.0,0.00024657,7]
[340348457,1729079495020,-424.74962504,0.00024657,7]
[340348458,1729079495029,-500.0,0.00024657,7]
[340348459,1729079495039,-500.0,0.00024657,7]
[340348460,1729079495048,-741.77017,0.00024657,7]
[340348461,1729079495057,-500.0,0.00024657,7]
[340348462,1729079495067,-500.0,0.00024657,7]
[340348463,1729079495076,-500.0,0.00024657,7]
[340348464,1729079495086,-741.77017,0.00024657,7]
[340348465,1729079495096,-500.0,0.00024657,7]
[340348466,1729079495106,-500.0,0.00024657,7]
[340348467,1729079495117,-741.77017,0.00024657,7]
[340348468,1729079495133,-500.0,0.00024657,7]
[340348469,1729079495142,-507.6431598,0.00024657,7]
[340348470,1729079495152,-500.0,0.00024657,7]
[340348471,1729079495161,-507.55886117,0.00024657,7]
[340348472,1729079495170,-537.18659857,0.00024657,7]
[340348473,1729079495179,-500.0,0.00024657,7]
[340348474,1729079495189,-500.0,0.00024657,7]
[340348475,1729079495198,-500.0,0.00024657,7]
[340348476,1729079495206,-500.0,0.00024657,7]
[340348477,1729079495216,-500.0,0.00024657,7]
[340348478,1729079495225,-500.0,0.00024657,7]
[340348479,1729079495234,-500.0,0.00024657,7]
[340348480,1729079495243,-500.0,0.00024657,7]
[340348481,1729079495367,-500.0,0.00024657,7]
[340348482,1729079495378,-500.0,0.00024657,7]
[340348483,1729079495387,-500.0,0.00024657,7]
[340348484,1729079495397,-500.0,0.00024657,7]
[340348485,1729079495406,-500.0,0.00024657,7]
[340348486,1729079495415,-500.0,0.00024657,7]
[340348487,1729079495425,-500.0,0.00024657,7]
[340348488,1729079495437,-500.0,0.00024657,7]
[340348489,1729079495446,-500.0,0.00024657,7]
[340348490,1729079495456,-564.29761668,0.00024657,7]
[340348491,1729079495465,-500.0,0.00024657,7]
[340348492,1729079495475,-500.0,0.00024657,7]
[340348493,1729079495485,-500.0,0.00024657,7]
[340348494,1729079495495,-500.0,0.00024657,7]
[340348495,1729079495504,-500.0,0.00024657,7]
[340348496,1729079495515,-500.0,0.00024657,7]
[340348497,1729079495525,-500.0,0.00024657,7]
[340348498,1729079495534,-341.80156272,0.00024657,7]
[340348499,1729079495544,-500.0,0.00024657,7]
[340348500,1729079495553,-510.95079323,0.00024657,7]
[340348501,1729079495564,-500.0,0.00024657,7]
[340348502,1729079495574,-500.0,0.00024657,7]
[340348503,1729079495583,-500.0,0.00024657,7]
[340348504,1729079495592,-500.0,0.00024657,7]
[340348505,1729079495602,-500.0,0.00024657,7]
[340348506,1729079495615,-500.0,0.00024657,7]
[340348507,1729079495624,-500.0,0.00024657,7]
[340348508,1729079495634,-500.0,0.00024657,7]
[340348509,1729079495644,-611.54417523,0.00024657,7]
[340348510,1729079495654,-500.0,0.00024657,7]
[340348511,1729079495664,-500.0,0.00024657,7]
[340348512,1729079495673,-500.0,0.00024657,7]
[340348513,1729079495683,-500.0,0.00024657,7]
[340348514,1729079495692,-483.47,0.00024657,7]
[340348515,1729079495703,-500.0,0.00024657,7]
[340348516,1729079495714,-500.0,0.00024657,7]
[340348517,1729079495724,-500.0,0.00024657,7]
[340348518,1729079495736,-500.0,0.00024657,7]
[340348519,1729079495747,-500.0,0.00024657,7]
[340348520,1729079495756,-500.0,0.00024657,7]
[340348521,1729079495766,-500.0,0.00024657,7]
[340348522,1729079495776,-541.2457866,0.00024657,7]
[340348523,1729079495785,-500.0,0.00024657,7]
[340348524,1729079495795,-500.0,0.00024657,7]
[340348525,1729079495804,-500.0,0.00024657,7]
[340348526,1729079495814,-500.0,0.00024657,7]
[340348527,1729079495823,-500.0,0.00024657,7]
[340348528,1729079495833,-500.0,0.00024657,7]
[340348529,1729079495843,-500.0,0.00024657,7]
[340348530,1729079495852,-542.14294909,0.00024657,7]
[340348531,1729079495861,-500.0,0.00024657,7]
[340348532,1729079495873,-500.0,0.00024657,7]
[340348533,1729079495883,-500.0,0.00024657,7]
[340348534,1729079495893,-500.0,0.00024657,7]
[340348535,1729079495904,-500.0,0.00024657,7]
[340348536,1729079495915,-500.0,0.00024657,7]
[340348537,1729079495925,-500.0,0.00024657,7]
[340348538,1729079495935,-500.0,0.00024657,7]
[340348539,1729079495947,-500.0,0.00024657,7]
[340348540,1729079495957,-500.0,0.00024657,7]
[340348541,1729079495968,-500.0,0.00024657,7]
[340348542,1729079495978,-500.0,0.00024657,7]
[340348543,1729079495989,-500.0,0.00024657,7]
[340348544,1729079495999,-500.0,0.00024657,7]
[340348545,1729079496011,-500.0,0.00024657,7]
[340348546,1729079496020,-500.0,0.00024657,7]
[340348547,1729079496031,-549.72603413,0.00024657,7]
[340348548,1729079496041,-500.0,0.00024657,7]
[340348549,1729079496050,-500.0,0.00024657,7]
[340348550,1729079496061,-500.0,0.00024657,7]
[340348551,1729079496070,-500.0,0.00024657,7]
[340348552,1729079496079,-500.0,0.00024657,7]
[340348553,1729079496090,-500.0,0.00024657,7]
[340348554,1729079496101,-450.06254046,0.00024657,7]
[340348555,1729079496112,-706.45,0.00024657,7]
[340348556,1729079496123,-532.32946225,0.00024657,7]
[340348557,1729079496132,-344.49909636,0.00024657,7]
[340348558,1729079496142,-706.45,0.00024657,7]
[340348559,1729079496153,-500.0,0.00024657,7]
[340348560,1729079496163,-500.0,0.00024657,7]
[340348561,1729079496173,-706.45,0.00024657,7]
[340348562,1729079496183,-500.0,0.00024657,7]
[340348563,1729079496193,-500.0,0.00024657,7]
[340348564,1729079496202,-500.0,0.00024657,7]
[340348565,1729079496212,-706.45,0.00024657,7]
[340348566,1729079496221,-500.0,0.00024657,7]
[340348567,1729079496233,-500.0,0.00024657,7]
[340348568,1729079496243,-500.0,0.00024657,7]
[340348569,1729079496254,-706.45,0.00024657,7]
[340348570,1729079496265,-151.0,0.00024657,7]
[340348571,1729079496275,-500.0,0.00024657,7]
[340348572,1729079496285,-706.45,0.00024657,7]
[340348573,1729079496294,-500.0,0.00024657,7]
[340348574,1729079496307,-151.0,0.00024657,7]
[340348575,1729079496318,-706.45,0.00024657,7]
[340348576,1729079496329,-151.0,0.00024657,7]
[340348577,1729079496338,-500.0,0.00024657,7]
[340348578,1729079496348,-706.45,0.00024657,7]
[340348579,1729079496358,-151.0,0.00024657,7]
[340348580,1729079496369,-500.0,0.00024657,7]
[340348581,1729079496378,-706.45,0.00024657,7]
[340348582,1729079496388,-151.0,0.00024657,7]
[340348583,1729079496399,-500.0,0.00024657,7]
[340348584,1729079496409,-151.0,0.00024657,7]
[340348585,1729079496418,-706.45,0.00024657,7]
[340348586,1729079496430,-500.0,0.00024657,7]
[340348587,1729079496444,-500.0,0.00024657,7]
[340348588,1729079496455,-706.45,0.00024657,7]
[340348589,1729079496467,-500.0,0.00024657,7]
[340348590,1729079496479,-507.22975002,0.00024657,7]
[340348591,1729079496490,-500.0,0.00024657,7]
[340348592,1729079496502,-706.45,0.00024657,7]
[340348593,1729079496515,-500.0,0.00024657,7]
[340348594,1729079496527,-500.0,0.00024657,7]
[340348595,1729079496537,-500.0,0.00024657,7]
[340348596,1729079496547,-706.45,0.00024657,7]
[340348597,1729079496559,-514.98646122,0.00024657,7]
[340348598,1729079496568,-500.0,0.00024657,7]
[340348599,1729079496577,-706.45,0.00024657,7]
[340348600,1729079496586,-500.0,0.00024657,7]
[340348601,1729079496595,-706.45,0.00024657,7]
[340348602,1729079496605,-500.0,0.00024657,7]
[340348603,1729079496615,-500.0,0.00024657,7]
[340348604,1729079496625,-500.0,0.00024657,7]
[340348605,1729079496634,-592.20687211,0.00024657,7]
[340348606,1729079496644,-706.45,0.00024657,7]
[340348607,1729079496655,-500.0,0.00024657,7]
[340348608,1729079496664,-500.0,0.00024657,7]
[340348609,1729079496673,-706.45,0.00024657,7]
[340348610,1729079496683,-500.0,0.00024657,7]
[340348611,1729079496693,-500.0,0.00024657,7]
[340348612,1729079496703,-706.45,0.00024657,7]
[340348613,1729079496712,-500.0,0.00024657,7]
[340348614,1729079496722,-500.0,0.00024657,7]
[340348615,1729079496731,-706.45,0.00024657,7]
[340348616,1729079496740,-420.62076181,0.00024657,7]
[340348617,1729079496750,-706.45,0.00024657,7]
[340348618,1729079496760,-506.24765332,0.00024657,7]
[340348619,1729079496769,-500.0,0.00024657,7]
[340348620,1729079496779,-500.0,0.00024657,7]
[340348621,1729079496788,-224.12515533,0.00024657,7]
[340348622,1729079496953,-275.87484467,0.00024657,7]
[340348623,1729079496963,-706.45,0.00024657,7]
[340348624,1729079496973,-500.0,0.00024657,7]
[340348625,1729079496983,-500.0,0.00024657,7]
[340348626,1729079496993,-500.0,0.00024657,7]
[340348627,1729079497003,-262.04765721,0.00024657,7]
[340348628,1729079497014,-706.45,0.00024657,7]
[340348629,1729079497023,-500.0,0.00024657,7]
[340348630,1729079497032,-706.45,0.00024657,7]
[340348631,1729079497041,-519.57650802,0.00024657,7]
[340348632,1729079497050,-706.47,0.00024657,7]
[340348633,1729079497060,-500.0,0.00024657,7]
[340348634,1729079497069,-442.2729901,0.00024657,7]
[340348635,1729079497088,-57.7270099,0.00024657,7]
[340348636,1729079497097,-500.0,0.00024657,7]
[340348637,1729079497106,-500.0,0.00024657,7]
[340348638,1729079497116,-500.0,0.00024657,7]
[340348639,1729079497125,-500.0,0.00024657,7]
[340348640,1729079497135,-500.0,0.00024657,7]
[340348641,1729079497143,-500.0,0.00024657,7]
[340348642,1729079497152,-500.0,0.00024657,7]
[340348643,1729079497161,-500.0,0.00024657,7]
[340348644,1729079497170,-500.0,0.00024657,7]
[340348645,1729079497286,-500.0,0.00024657,7]
[340348646,1729079497297,-466.25120047,0.00024657,7]
[340348647,1729079497307,-500.0,0.00024657,7]
[340348648,1729079497317,-500.0,0.00024657,7]
[340348649,1729079497328,-500.0,0.00024657,7]
[340348650,1729079497338,-500.0,0.00024657,7]
[340348651,1729079497348,-253.10903021,0.00024657,7]
[340348652,1729079497357,-316.53771554,0.00024657,7]
[340348653,1729079497367,-500.0,0.00024657,7]
[340348654,1729079497377,-500.0,0.00024657,7]
[340348655,1729079497386,-500.0,0.00024657,7]
[340348656,1729079497395,-409.98859467,0.00024657,7]
[340348657,1729079502163,152.0,8.673e-05,2]
[340348658,1729079599578,500.0,0.00026851,120]
[340348659,1729079625002,161.25,0.000125,3]
[340348660,1729079646157,800.0,0.00026849,120]
[340348661,1729079725841,550.0,0.0001,2]
[340348662,1729079838776,500.0,0.00024657,120]
[340348663,1729079839089,500.0,0.00024657,120]
[340348664,1729079839431,500.0,0.00024657,120]
[340348665,1729079839705,500.0,0.00024657,120]
[340348666,1729079840050,500.0,0.00024657,120]
[340348667,1729079840522,500.0,0.00024657,120]
[340348668,1729079840620,500.0,0.00024657,120]
[340348669,1729079840894,538.16126392,0.00024657,120]
[340348670,1729079962124,250.0,9.92e-05,2]
[340348671,1729079962222,415.5523,0.00027,60]
[340348672,1729080017875,800.0,0.00026282,120]
[340348673,1729080428417,-669.82,0.000108,2]
[340348674,1729080428440,-150.0,0.00010899,2]
[340348675,1729080428461,-4414.9101,0.000109,2]
[340348676,1729080428481,-2061.1445,0.000109,2]
[340348677,1729080428501,-747.4548,0.000109,2]
[340348678,1729080428521,-1000.0,0.000109,2]
[340348679,1729080428541,-6388.57745674,0.000109,2]
[340348680,1729080428562,-159.66,0.00010959,2]
[340348681,1729080428582,-317.4,0.00011,2]
[340348682,1729080428604,-600.0,0.00012,2]
[340348683,1729080428624,-151.0,0.00012329,2]
[340348684,1729080428644,-151.0,0.00012329,2]
[340348685,1729080428664,-127.63129579,0.00012329,2]
[340348686,1729080570113,-150.0,0.0001066,2]
[340348687,1729080570134,-800.0,0.00013699,2]
[340348688,1729080570156,-800.0,0.00013699,2]
[340348689,1729080570175,-800.0,0.00013699,2]
[340348690,1729080570196,-311.112352,0.00013699,2]
[340348691,1729080585673,160.0,0.00026699,120]
[340348700,1729080632112,-488.887648,0.00013699,2]
[340348701,1729080632121,-800.0,0.00013699,2]
[340348702,1729080632131,-800.0,0.00013699,2]
[340348703,1729080632140,-800.0,0.00013699,2]
[340348704,1729080632149,-800.0,0.00013699,2]
[340348705,1729080632158,-800.0,0.00013699,2]
[340348706,1729080632167,-800.0,0.00013699,2]
[340348707,1729080632177,-800.0,0.00013699,2]
[340348708,1729080632186,-800.0,0.00013699,2]
[340348709,1729080632195,-650.0,0.00014,2]
[340348710,1729080632205,-262.26562349,0.0001429,7]
[340348711,1729080632214,-499.99,0.0001429,2]
[340348712,1729080632223,-253.79,0.0001429,2]
[340348713,1729080632231,-179.99,0.0001429,2]
[340348714,1729080632240,-3965.928942,0.00014545,2]
[340348715,1729080632249,-151.0,0.00014713,2]
[340348716,1729080632258,-150.0,0.00015,2]
[340348717,1729080632268,-5885.0,0.00015346,2]
[340348718,1729080632276,-1150.0,0.00015346,2]
[340348719,1729080632285,-13532.0,0.00015346,2]
[340348720,1729080632295,-150.0,0.00015346,2]
[340348721,1729080632304,-789.85,0.00015938,2]
[340348722,1729080632313,-700.0,0.00016,2]
[340348723,1729080632323,-321.89,0.00016,2]
[340348724,1729080632334,-289.07,0.00016438,2]
[340348725,1729080632343,-1000.0,0.00016475,2]
[340348726,1729080632353,-592.258,0.00016476,2]
[340348727,1729080632362,-559.0,0.00016476,2]
[340348728,1729080632371,-555.0,0.00016476,2]
[340348729,1729080632380,-555.573,0.00016476,2]
[340348730,1729080632389,-1664.799,0.00016476,2]
[340348731,1729080632399,-3357.0,0.00016476,2]
[340348732,1729080632408,-808.0,0.00016476,2]
[340348733,1729080632417,-152.52,0.00016712,2]
[340348734,1729080632427,-250.0,0.0001722,2]
[340348735,1729080632436,-459.14,0.00017395,2]
[340348736,1729080632445,-200.0,0.0001749,2]
[340348737,1729080632454,-70605.49,0.00017769,2]
[340348738,1729080632463,-222.92,0.00017773,2]
[340348739,1729080632472,-197.99,0.0001778,2]
[340348740,1729080632482,-150.0,0.00017787,2]
[340348741,1729080632491,-150.0,0.00017788,2]
[340348743,1729080632500,-250.0,0.00017788,2]
[340348745,1729080632510,-160.0,0.00017799,2]
[340348746,1729080632519,-360.0,0.000178,2]
[340348747,1729080632528,-227.0,0.000178,2]
[340348748,1729080632538,-1000.0,0.00017869,2]
[340348749,1729080632547,-7289.1864,0.000179,2]
[340348750,1729080632556,-615.8192,0.000179,2]
[340348751,1729080632566,-2751.0,0.0001792,2]
[340348752,1729080632575,-423.16118854,0.00017935,2]
[340348753,1729080632587,-464.01120085,0.00017973,2]
[340348754,1729080632596,-161.84945306,0.00017973,2]
[340348755,1729080632605,-500.0,0.00017973,2]
[340348756,1729080632615,-750.0,0.00018,2]
[340348757,1729080632624,-952.2,0.00018,7]
[340348758,1729080632633,-3051.32034407,0.00018,2]
[340348759,1729080632646,-41465.69368089,0.00018,2]
[340348760,1729080632657,-5568.84997504,0.00018,2]
[340348761,1729080632666,-566.79,0.00018119,2]
[340348762,1729080632676,-789.85,0.00018201,2]
[340348763,1729080632686,-150.0,0.00018262,2]
[340348764,1729080632695,-423.16118854,0.00018341,2]
[340348765,1729080632704,-5271.323,0.00018346,2]
[340348766,1729080632713,-1150.0,0.00018346,2]
[340348767,1729080632723,-13532.0,0.00018346,2]
[340348768,1729080632732,-150.0,0.00018346,2]
[340348769,1729080632742,-423.16118854,0.00018556,2]
[340348770,1729080632751,-423.16118854,0.00018659,2]
[340348771,1729080632761,-150.0,0.00018737,2]
[340348772,1729080632771,-1500.0,0.00018748,2]
[340348773,1729080632782,-423.16118854,0.00019072,2]
[340348774,1729080632791,-800.0,0.00019114,2]
[340348775,1729080632800,-163.21,0.00019115,2]
[340348776,1729080632809,-423.16118854,0.00019205,2]
[340348777,1729080632820,-163.21,0.00019211,2]
[340348778,1729080632831,-150.0,0.00019212,2]
[340348779,1729080632840,-300.0,0.00019347,2]
[340348780,1729080632850,-208.609,0.00019476,2]
[340348781,1729080632862,-423.16118854,0.00019486,2]
[340348782,1729080633045,-150.0,0.00019687,2]
[340348783,1729080633055,-479.44,0.00019716,3]
[340348784,1729080633065,-423.16118854,0.00019803,2]
[340348785,1729080633075,-12646.78698102,0.00019968,2]
[340348786,1729080633088,-800.0,0.0002,2]
[340348787,1729080633099,-2000.0,0.0002,2]
[340348788,1729080633109,-10009.27892166,0.0002,2]
[340348789,1729080633120,-8000.0,0.0002,7]
[340348790,1729080633131,-2000.0,0.0002001,2]
[340348791,1729080633141,-2612.239397,0.0002002,2]
[340348792,1729080633151,-160.0,0.00020024,2]
[340348793,1729080633161,-1000.0,0.00020068,2]
[340348794,1729080633172,-500.0,0.00020068,2]
[340348795,1729080633182,-500.0,0.00020068,2]
[340348796,1729080633191,-800.0,0.00020068,2]
[340348797,1729080633201,-1000.0,0.00020103,2]
[340348798,1729080633211,-150.0,0.00020162,2]
[340348799,1729080633220,-423.16118854,0.00020234,2]
[340348800,1729080633230,-5350.54813453,0.00020234,2]
[340348801,1729080633240,-289.07,0.00020274,2]
[340348802,1729080633249,-210.94,0.00020332,2]
[340348803,1729080633259,-1758.8238,0.00020387,2]
[340348804,1729080633269,-789.85,0.00020465,2]
[340348805,1729080633279,-423.16118854,0.00020471,2]
[340348806,1729080633290,-297.44509791,0.00020473,2]
[340348807,1729080633299,-1130.04501989,0.00020486,5]
[340348808,1729080633308,-12646.78698101,0.00020516,2]